bitfinex/quotes_BTCUSD_20241226
["timestamp","ask_amount","ask_price","bid_price","bid_amount"]
[1735177528698,0.00013664,98836.0,98835.0,0.16589667]
[1735177528956,0.00013664,98836.0,98835.0,0.16389667]
[1735177529149,0.00013664,98836.0,98835.0,0.16289667]
[1735177529403,0.00013664,98836.0,98835.0,0.16789667]
[1735177529562,0.00013664,98836.0,98835.0,0.16989667]
[1735177531260,0.00013664,98836.0,98835.0,0.17985524]
[1735177533625,0.00013664,98836.0,98835.0,0.17485524]
[1735177533854,0.00013664,98836.0,98835.0,0.17285524]
[1735177534064,0.00013664,98836.0,98835.0,0.17685524]
[1735177535059,0.13193664,98836.0,98835.0,0.004]
[1735177535662,0.13193664,98836.0,98835.0,0.003]
[1735177536666,0.15,98835.0,98814.0,0.323839]
[1735177537009,0.10499767,98834.0,98814.0,0.323839]
[1735177537822,0.10499767,98834.0,98814.0,0.161919]
[1735177538154,0.10499767,98834.0,98814.0,0.16293087]
[1735177538375,0.11199767,98834.0,98814.0,0.16393087]
[1735177538546,0.11199767,98834.0,98814.0,0.16293087]
[1735177538547,0.11399767,98834.0,98814.0,0.16293087]
[1735177538776,0.161889,98833.0,98814.0,0.16293087]
[1735177538947,0.10499767,98832.0,98814.0,0.16293087]
[1735177539182,0.10499767,98832.0,98814.0,0.161919]
[1735177539885,0.10499767,98832.0,98815.0,0.00101187]
[1735177541106,0.10799767,98832.0,98815.0,0.00101187]
[1735177541301,0.12000735,98832.0,98815.0,0.00101187]
[1735177541892,0.004,98834.0,98815.0,0.00101187]
[1735177541893,0.004,98834.0,98831.0,0.161892]
[1735177542102,0.1620026,98869.0,98850.0,0.1]
[1735177542103,0.0001716,98869.0,98850.0,0.1]
[1735177542312,0.0001716,98869.0,98865.0,0.161836]
[1735177542520,0.00069161,98867.0,98865.0,0.161836]
[1735177542726,0.00069161,98867.0,98866.0,0.00101137]
[1735177543956,0.00069161,98867.0,98866.0,0.10499769]
[1735177544170,0.00069161,98867.0,98866.0,0.13707836]
[1735177544765,0.00069161,98867.0,98866.0,0.15218839]
[1735177545166,0.00069161,98867.0,98866.0,0.12210772]
[1735177546221,0.00069161,98867.0,98866.0,0.22210772]
[1735177546428,0.00069161,98867.0,98866.0,0.22109635]
[1735177546634,6.1e-07,98867.0,98866.0,0.49409635]
[1735177546986,6.1e-07,98867.0,98866.0,0.52417702]
[1735177547466,6.1e-07,98867.0,98866.0,0.52217702]
[1735177547647,6.1e-07,98867.0,98866.0,0.55356302]
[1735177547948,0.00100061,98867.0,98866.0,0.55456302]
[1735177548156,6.1e-07,98867.0,98866.0,0.56356302]
[1735177548388,8.1e-07,98871.0,98870.0,0.2]
[1735177548598,0.00013761,98871.0,98870.0,0.47799726]
[1735177548803,0.00013761,98871.0,98870.0,0.53845299]
[1735177550408,0.00014181,98880.0,98879.0,0.1]
[1735177550612,0.00014181,98880.0,98879.0,0.20499724]
[1735177551427,0.00012634,98893.0,98892.0,0.161792]
[1735177551646,0.00012634,98893.0,98892.0,0.26678924]
[1735177551852,0.00012634,98893.0,98892.0,0.26577832]
[1735177553032,0.00012634,98893.0,98892.0,0.36577832]
[1735177553849,0.00012634,98893.0,98892.0,0.40716432]
[1735177554793,0.00012634,98893.0,98892.0,0.4172689]
[1735177555003,0.15,98930.0,98908.0,0.323531]
[1735177555212,0.15,98930.0,98910.0,0.10635858]
[1735177555213,0.15013684,98930.0,98910.0,0.10635858]
[1735177555415,0.15013684,98930.0,98911.0,0.00101082]
[1735177555622,0.15,98928.0,98911.0,0.00101082]
[1735177555830,0.15,98926.0,98910.0,0.10635858]
[1735177556897,0.15,98926.0,98910.0,0.10735858]
[1735177557102,0.153,98926.0,98910.0,0.10635858]
[1735177557536,0.154,98926.0,98910.0,0.10635858]
[1735177557677,0.151,98926.0,98910.0,0.10635858]
[1735177558108,0.151,98926.0,98901.0,0.161777]
[1735177558109,0.15,98923.0,98901.0,0.161777]
[1735177558470,0.152,98926.0,98902.0,0.00101089]
[1735177559155,0.10398632,98925.0,98895.0,0.161787]
[1735177559369,0.161761,98912.0,98892.0,0.01010458]
[1735177559597,0.323522,98912.0,98891.0,0.161794]
[1735177560034,0.161761,98912.0,98892.0,0.00101098]
[1735177560208,0.161754,98916.0,98896.0,0.161784]
[1735177560436,0.161754,98916.0,98900.0,0.10635858]
[1735177560639,0.161754,98916.0,98901.0,0.00101097]
[1735177561479,0.162754,98916.0,98901.0,0.00101097]
[1735177561656,0.161754,98916.0,98901.0,0.00101097]
[1735177561922,0.161756,98914.0,98901.0,0.00101097]
[1735177562330,0.161756,98914.0,98902.0,0.00101097]
[1735177562772,0.0001716,98933.0,98909.0,0.161764]
[1735177562977,0.0001716,98933.0,98929.0,0.161732]
[1735177563394,0.0001716,98933.0,98929.0,0.26571832]
[1735177563820,0.0001716,98933.0,98929.0,0.2971332]
[1735177564019,0.00313684,98930.0,98929.0,0.32721387]
[1735177564516,0.00313684,98930.0,98929.0,0.2981332]
[1735177564715,0.00313684,98930.0,98929.0,0.2971332]
[1735177565126,0.00313684,98930.0,98929.0,0.3021332]
[1735177566051,0.00013684,98930.0,98929.0,0.3021332]
[1735177566258,0.00013684,98930.0,98929.0,0.3041332]
[1735177567431,0.00013684,98930.0,98929.0,0.31408443]
[1735177567850,0.00013684,98930.0,98929.0,0.28266955]
[1735177572930,0.0001,98949.0,98929.0,0.28266955]
[1735177572931,6.4e-07,98949.0,98948.0,0.1]
[1735177573132,6.4e-07,98949.0,98948.0,0.63868732]
[1735177573334,0.04967,98997.0,98965.0,0.1]
[1735177573478,0.04967,98997.0,98965.0,0.36666942]
[1735177573698,0.00060532,98966.0,98965.0,0.36565932]
[1735177574135,3.2e-07,98969.0,98968.0,0.1]
[1735177574339,0.00013701,98969.0,98968.0,0.47799627]
[1735177574547,0.00013701,98969.0,98968.0,0.47698632]
[1735177575674,1e-08,98969.0,98968.0,0.55818632]
[1735177575889,1e-08,98969.0,98968.0,0.56318632]
[1735177576315,1e-08,98969.0,98968.0,0.57218632]
[1735177576642,1e-08,98969.0,98968.0,0.56318632]
[1735177576847,1e-08,98969.0,98968.0,0.57218632]
[1735177577076,7e-05,98997.0,98991.0,0.09972474]
[1735177577277,7e-05,98997.0,98996.0,0.09972474]
[1735177577495,7e-05,98997.0,98996.0,0.22772078]
[1735177577835,7e-05,98997.0,98996.0,0.12671106]
[1735177578032,7e-05,98997.0,98996.0,0.12772079]
[1735177578234,7e-05,98997.0,98996.0,0.14785929]
[1735177579062,7e-05,98997.0,98996.0,0.14985929]
[1735177580077,7e-05,98997.0,98996.0,0.15385929]
[1735177580279,7e-05,98997.0,98996.0,0.23035929]
[1735177580490,0.0001,99034.0,99008.0,0.184603]
[1735177580690,0.00025577,99009.0,99008.0,0.28959893]
[1735177580905,0.00025577,99009.0,99008.0,0.26558932]
[1735177581754,0.00025577,99009.0,99008.0,0.26858932]
[1735177582167,0.00025577,99009.0,99008.0,0.29502157]
[1735177582523,0.00025577,99009.0,99008.0,0.29802157]
[1735177583284,0.00025577,99009.0,99008.0,0.28202157]
[1735177583474,0.00025577,99009.0,99008.0,0.27502157]
[1735177584003,0.00025577,99009.0,99008.0,0.28202157]
[1735177586291,0.00025577,99009.0,99008.0,0.01]
[1735177587081,0.00025577,99009.0,99000.0,0.161616]
[1735177587333,0.00025577,99009.0,99008.0,0.006]
[1735177587531,0.00025577,99009.0,99008.0,0.008]
[1735177587730,0.00025577,99009.0,99008.0,0.002]
[1735177588150,0.00025577,99009.0,99001.0,0.00100992]
[1735177588365,0.00025577,99009.0,99002.0,0.00100992]
[1735177588794,0.00025577,99009.0,99002.0,0.16262192]
[1735177589164,0.00025577,99009.0,99008.0,0.001]
[1735177589542,0.00034137,99009.0,99008.0,0.00600983]
[1735177589991,0.00034137,99009.0,99008.0,0.00200983]
[1735177590440,0.00034137,99009.0,99008.0,0.00100983]
[1735177590614,0.0001,99049.0,99046.0,0.161541]
[1735177590765,0.0001,99049.0,99048.0,0.161537]
[1735177590971,0.00025571,99049.0,99048.0,0.26552332]
[1735177591657,0.00025571,99049.0,99048.0,0.28852332]
[1735177592271,7.1e-07,99049.0,99048.0,0.56161086]
[1735177592410,7.1e-07,99049.0,99048.0,0.56823744]
[1735177592816,7.1e-07,99049.0,99048.0,0.57023744]
[1735177593041,7.1e-07,99049.0,99048.0,0.56823744]
[1735177593449,7.1e-07,99049.0,99048.0,0.57423744]
[1735177593656,7.1e-07,99049.0,99048.0,0.56523744]
[1735177593860,7.1e-07,99049.0,99048.0,0.57023744]
[1735177594056,7.1e-07,99049.0,99048.0,0.57923744]
[1735177594327,7.1e-07,99049.0,99048.0,0.56523744]
[1735177594646,0.00100071,99049.0,99048.0,0.58023744]
[1735177595056,7.1e-07,99049.0,99048.0,0.57423744]
[1735177595265,7.1e-07,99049.0,99048.0,0.47423744]
[1735177595596,7.1e-07,99049.0,99048.0,0.45523744]
[1735177595793,7.1e-07,99049.0,99048.0,0.2761499]
[1735177596191,7.1e-07,99049.0,99048.0,0.2851499]
[1735177596360,7.1e-07,99049.0,99048.0,0.2761499]
[1735177596812,7.1e-07,99049.0,99048.0,0.2811499]
[1735177597191,7.1e-07,99049.0,99048.0,0.2721499]
[1735177597412,7.1e-07,99049.0,99048.0,0.2771499]
[1735177597620,7.1e-07,99049.0,99048.0,0.2811499]
[1735177598117,7.1e-07,99049.0,99048.0,0.2771499]
[1735177598323,7.1e-07,99049.0,99048.0,0.2791499]
[1735177599686,7.1e-07,99049.0,99048.0,0.28421602]
[1735177601252,8.621e-05,99049.0,99048.0,0.28421602]
[1735177603338,8.621e-05,99049.0,99048.0,0.27721602]
[1735177603694,8.621e-05,99049.0,99048.0,0.28421602]
[1735177604122,8.621e-05,99049.0,99048.0,0.28221602]
[1735177604322,8.621e-05,99049.0,99048.0,0.01206612]
[1735177604683,8.621e-05,99049.0,99048.0,0.01307559]
[1735177605137,8.621e-05,99049.0,99048.0,0.01107559]
[1735177605294,8.621e-05,99049.0,99048.0,0.11006191]
[1735177605699,8.621e-05,99049.0,99048.0,0.11669009]
[1735177606426,0.00208621,99049.0,99048.0,0.11669009]
[1735177606993,8.621e-05,99049.0,99048.0,0.12169009]
[1735177607400,8.621e-05,99049.0,99048.0,0.12369009]
[1735177607799,8.621e-05,99049.0,99048.0,0.12169009]
[1735177607965,8.621e-05,99049.0,99048.0,0.12269009]
[1735177608365,8.621e-05,99049.0,99048.0,0.11769009]
[1735177608950,8.621e-05,99049.0,99048.0,0.12069009]
[1735177609353,8.621e-05,99049.0,99048.0,0.11769009]
[1735177609552,8.621e-05,99049.0,99048.0,0.12769009]
[1735177609784,8.621e-05,99049.0,99048.0,0.13169009]
[1735177612654,8.621e-05,99049.0,99048.0,0.12786109]
[1735177612853,8.621e-05,99049.0,99048.0,0.13186109]
[1735177613496,8.621e-05,99049.0,99048.0,0.13386109]
[1735177613947,8.621e-05,99049.0,99048.0,0.13186109]
[1735177614166,8.621e-05,99049.0,99048.0,0.13286109]
[1735177614583,8.621e-05,99049.0,99048.0,0.12786109]
[1735177614841,8.621e-05,99049.0,99048.0,0.14186109]
[1735177619220,8.621e-05,99049.0,99048.0,0.41486109]
[1735177619475,8.621e-05,99049.0,99048.0,0.41385162]
[1735177620281,8.621e-05,99049.0,99048.0,0.49325162]
[1735177620661,8.621e-05,99049.0,99048.0,0.49225162]
[1735177620863,8.621e-05,99049.0,99048.0,0.49525162]
[1735177621232,8.621e-05,99049.0,99048.0,0.49125162]
[1735177621473,8.621e-05,99049.0,99048.0,0.49925162]
[1735177623415,0.311448,99103.0,99048.0,0.49925162]
[1735177623416,0.0001,99092.0,99067.0,0.161506]
[1735177623630,0.0001,99092.0,99088.0,0.161472]
[1735177623840,0.00041924,99089.0,99088.0,0.43946715]
[1735177624066,0.00031924,99089.0,99088.0,0.53845832]
[1735177624478,0.00031924,99089.0,99088.0,0.55875599]
[1735177624683,0.00431924,99089.0,99088.0,0.55875599]
[1735177624894,0.00440474,99089.0,99088.0,0.55875599]
[1735177625898,0.00040474,99089.0,99088.0,0.89125039]
[1735177626101,0.00040474,99089.0,99088.0,0.90482626]
[1735177626305,0.0822,99119.0,99089.0,0.273]
[1735177626514,0.00024131,99096.0,99095.0,0.184461]
[1735177626715,0.00024131,99096.0,99095.0,0.28945613]
[1735177626918,0.00024131,99096.0,99095.0,0.28844732]
[1735177627589,0.0822,99119.0,99108.0,0.16144]
[1735177627834,0.0822,99119.0,99108.0,0.26643513]
[1735177628005,0.0822,99119.0,99108.0,0.26542632]
[1735177629406,0.0822,99119.0,99108.0,0.27042632]
[1735177630217,0.0822,99119.0,99108.0,0.27142632]
[1735177630427,0.1822,99119.0,99108.0,0.006]
[1735177631044,0.1822,99119.0,99108.0,0.00700887]
[1735177631670,0.1822,99119.0,99108.0,0.00200887]
[1735177631993,0.1822,99119.0,99108.0,0.00400887]
[1735177632201,0.1822,99119.0,99108.0,0.00100887]
[1735177632640,0.1822,99119.0,99108.0,0.00300887]
[1735177632842,0.0822,99119.0,99108.0,0.00300887]
[1735177634211,0.0822,99119.0,99108.0,0.00100887]
[1735177634413,0.0822,99119.0,99108.0,0.00100884]
[1735177634660,0.0461,99121.0,99108.0,0.11299516]
[1735177634829,0.0461,99121.0,99108.0,0.10499516]
[1735177635038,0.0461,99121.0,99108.0,0.11099516]
[1735177635262,0.00636727,99129.0,99108.0,0.11099516]
[1735177635793,0.00636727,99129.0,99108.0,0.11199516]
[1735177635969,0.00636727,99129.0,99108.0,0.10599516]
[1735177636128,0.00636727,99129.0,99108.0,0.10499516]
[1735177636555,0.00636727,99129.0,99108.0,0.10599516]
[1735177636755,0.00636727,99129.0,99108.0,0.11099516]
[1735177637159,0.00636727,99129.0,99108.0,0.10999516]
[1735177637776,0.10636727,99129.0,99108.0,0.10999516]
[1735177637970,0.1,99124.0,99107.0,0.161441]
[1735177638170,0.0901857,99120.0,99108.0,0.00100882]
[1735177638396,0.0901857,99120.0,99109.0,0.00100886]
[1735177639353,0.0911857,99120.0,99109.0,0.00100886]
[1735177639870,0.0901857,99120.0,99109.0,0.00100886]
[1735177640076,0.0911857,99120.0,99110.0,0.161436]
[1735177640284,0.0911857,99120.0,99111.0,0.00100886]
[1735177640487,0.0794,99119.0,99111.0,0.00100886]
[1735177640874,0.0794,99119.0,99109.0,0.01]
[1735177641215,0.0794,99119.0,99110.0,0.161436]
[1735177641417,0.0794,99119.0,99109.0,0.011]
[1735177641418,0.0794,99119.0,99109.0,0.01]
[1735177641634,0.0794,99119.0,99111.0,0.002]
[1735177641838,0.0901857,99114.0,99111.0,0.002]
[1735177641998,0.0901857,99114.0,99109.0,0.01]
[1735177642207,0.0901857,99114.0,99109.0,0.012]
[1735177642517,0.0901857,99114.0,99109.0,0.01]
[1735177642938,0.0901857,99114.0,99111.0,0.002]
[1735177643768,0.0901857,99114.0,99099.0,0.15946193]
[1735177644112,0.0901857,99114.0,99100.0,0.00100893]
[1735177644311,0.0901857,99114.0,99099.0,0.15946193]
[1735177644312,0.0901857,99110.0,99099.0,0.00100896]
[1735177644486,0.0901857,99110.0,99100.0,0.00100897]
[1735177644692,0.0901857,99110.0,99109.0,0.004]
[1735177645082,0.0901857,99110.0,99100.0,0.00100897]
[1735177645519,0.0901857,99110.0,99099.0,0.161453]
[1735177645965,0.0901857,99110.0,99082.0,0.1]
[1735177645966,0.0901857,99107.0,99092.0,0.161465]
[1735177646173,0.0901857,99101.0,99084.0,0.00015561]
[1735177646385,0.0901857,99101.0,99088.0,0.161472]
[1735177646601,0.0901857,99101.0,99089.0,0.00100906]
[1735177646804,0.161446,99104.0,99084.0,0.00015561]
[1735177646805,0.0901857,99094.0,99084.0,0.00015561]
[1735177647697,0.0901857,99093.0,99084.0,0.00015561]
[1735177647890,0.0901857,99093.0,99084.0,0.16163461]
[1735177648467,0.0901857,99093.0,99084.0,0.00015561]
[1735177648667,0.0901857,99088.0,99084.0,0.01015561]
[1735177649370,0.3195857,99085.0,99084.0,0.01015561]
[1735177649573,0.58504902,99085.0,99084.0,0.01015561]
[1735177649774,0.1695857,99056.0,99055.0,0.08997486]
[1735177650669,0.0901857,99056.0,99048.0,0.02523712]
[1735177650868,0.047,99073.0,99049.0,0.10499576]
[1735177651072,0.0794,99078.0,99071.0,0.161499]
[1735177651200,0.0794,99078.0,99072.0,0.161498]
[1735177651791,0.00315547,99085.0,99077.0,0.16149]
[1735177651792,0.09334117,99085.0,99077.0,0.16149]
[1735177652002,0.00015547,99085.0,99082.0,0.161481]
[1735177652634,0.00015547,99085.0,99081.0,0.00100917]
[1735177653040,0.00015547,99085.0,99076.0,0.161492]
[1735177653244,0.00115547,99085.0,99078.0,0.161488]
[1735177653443,0.00115547,99085.0,99079.0,0.00100918]
[1735177654706,0.00015547,99085.0,99079.0,0.00100918]
[1735177654943,0.00115547,99085.0,99079.0,0.00100918]
[1735177655359,0.00015547,99085.0,99079.0,0.00100918]
[1735177655745,0.00115547,99085.0,99076.0,0.161492]
[1735177655951,0.00115547,99085.0,99077.0,0.00100918]
[1735177656586,0.00015547,99085.0,99077.0,0.00100918]
[1735177656937,0.0901857,99082.0,99072.0,0.01]
[1735177657098,0.0901857,99079.0,99072.0,0.01]
[1735177658467,0.0901857,99079.0,99072.0,0.013]
[1735177658849,0.0901857,99079.0,99072.0,0.01]
[1735177659052,0.0921857,99079.0,99072.0,0.01]
[1735177659282,0.0901857,99079.0,99072.0,0.01]
[1735177659684,0.0921857,99079.0,99072.0,0.01]
[1735177660546,0.0901857,99073.0,99072.0,0.01]
[1735177660754,0.1706857,99073.0,99072.0,0.01]
[1735177661594,0.42568095,99073.0,99072.0,0.01]
[1735177661792,0.47427202,99073.0,99072.0,0.01]
[1735177662712,0.56708262,99073.0,99072.0,0.011]
[1735177662912,0.56508262,99073.0,99072.0,0.01]
[1735177663122,0.47627202,99073.0,99072.0,0.011]
[1735177663323,0.47627202,99073.0,99072.0,0.012]
[1735177663324,0.48227202,99073.0,99072.0,0.012]
[1735177663562,0.48027202,99073.0,99072.0,0.011]
[1735177664761,0.47427202,99073.0,99072.0,0.011]
[1735177664959,0.47627202,99073.0,99072.0,0.011]
[1735177665196,0.47427202,99073.0,99072.0,0.01]
[1735177665606,0.48327202,99073.0,99072.0,0.022]
[1735177665955,0.47627202,99073.0,99072.0,0.021]
[1735177666533,0.564316,99073.0,99072.0,0.021]
[1735177666986,0.570316,99073.0,99072.0,0.022]
[1735177667983,0.568316,99073.0,99072.0,0.021]
[1735177668239,0.56959683,99073.0,99072.0,0.021]
[1735177668477,0.59659683,99073.0,99072.0,0.021]
[1735177668976,0.85144683,99073.0,99072.0,0.03]
[1735177669224,0.4017097,99056.0,99027.0,0.16687728]
[1735177669432,0.58619602,99056.0,99027.0,0.161571]
[1735177669684,0.58619602,99056.0,99009.0,0.0098143]
[1735177669685,0.63259602,99056.0,99018.0,0.161585]
[1735177669928,0.71644602,99056.0,99020.0,0.00514683]
[1735177670169,0.81644602,99056.0,99013.0,0.161594]
[1735177670425,0.81644602,99056.0,99014.0,0.00100979]
[1735177671703,0.82144602,99056.0,99014.0,0.00100979]
[1735177671957,0.81644602,99056.0,99014.0,0.00100979]
[1735177672224,0.76459602,99056.0,99055.0,0.0011714]
[1735177672492,0.77259602,99056.0,99055.0,0.0021714]
[1735177672764,0.77777809,99056.0,99055.0,0.0021714]
[1735177673262,0.88176441,99056.0,99055.0,0.0021714]
[1735177673493,0.4017217,99049.0,99014.0,0.00100979]
[1735177673757,0.50570802,99049.0,99014.0,0.00100979]
[1735177674026,0.50570802,99049.0,99018.0,0.161585]
[1735177674294,0.50570802,99049.0,99019.0,0.0010098]
[1735177674549,0.50570802,99049.0,99018.0,0.161585]
[1735177674550,0.50570802,99049.0,99018.0,0.0010098]
[1735177674789,0.50570802,99049.0,99048.0,0.02575636]
[1735177675231,0.61860802,99049.0,99048.0,0.02675636]
[1735177675466,0.61860802,99049.0,99048.0,0.02575636]
[1735177675467,0.60960802,99049.0,99048.0,0.02575636]
[1735177675694,0.60960802,99049.0,99048.0,0.02675636]
[1735177675916,0.62460802,99049.0,99048.0,0.02775636]
[1735177677263,0.62460802,99049.0,99048.0,0.002]
[1735177677509,0.92859434,99049.0,99048.0,0.002]
[1735177680498,0.82460802,99049.0,99048.0,0.002]
[1735177681509,0.62460802,99049.0,99048.0,0.002]
[1735177681960,0.68545802,99049.0,99048.0,0.002]
[1735177682471,0.60160802,99049.0,99048.0,0.002]
[1735177682744,0.43052232,99049.0,99048.0,0.002]
[1735177682990,0.28052232,99049.0,99048.0,0.002]
[1735177683509,0.1051857,99049.0,99048.0,0.002]
[1735177683743,0.1051857,99049.0,99048.0,0.0011714]
[1735177683744,0.09719463,99049.0,99048.0,0.0011714]
[1735177684152,0.10619463,99049.0,99048.0,0.0021714]
[1735177684360,0.09119463,99049.0,99048.0,0.0001714]
[1735177684568,0.24119463,99049.0,99048.0,0.0011714]
[1735177684771,0.2551857,99049.0,99048.0,0.0021714]
[1735177684972,0.2471857,99049.0,99048.0,0.0011714]
[1735177685173,0.2401857,99049.0,99048.0,0.0001714]
[1735177685381,0.2481857,99049.0,99048.0,0.0001714]
[1735177685579,0.0931857,99049.0,99048.0,0.0001714]
[1735177685795,0.003,99049.0,99048.0,0.39239472]
[1735177686233,0.003,99049.0,99048.0,0.39748897]
[1735177686444,0.0901857,99075.0,99048.0,0.23595197]
[1735177686658,0.0901857,99065.0,99048.0,0.13196565]
[1735177686858,0.0901857,99060.0,99050.0,0.161533]
[1735177687063,0.0901857,99060.0,99048.0,0.13196565]
[1735177687064,0.0901857,99055.0,99048.0,0.0001714]
[1735177687271,0.0901857,99052.0,99048.0,0.0001714]
[1735177687441,0.001,99049.0,99048.0,0.0071714]
[1735177687828,0.003,99049.0,99048.0,0.0001714]
[1735177688028,0.09419463,99049.0,99048.0,0.0001714]
[1735177688215,0.25273063,99049.0,99048.0,0.0001714]
[1735177688444,0.2537217,99049.0,99048.0,0.0001714]
[1735177688649,0.2567217,99049.0,99048.0,0.0001714]
[1735177688868,0.0951857,99049.0,99048.0,0.0001714]
[1735177689200,0.0931857,99049.0,99048.0,0.0001714]
[1735177689356,0.006,99049.0,99048.0,0.0001714]
[1735177689790,0.003,99049.0,99048.0,0.0001714]
[1735177690173,0.008,99049.0,99048.0,0.0001714]
[1735177690384,0.0931857,99049.0,99048.0,0.0001714]
[1735177691092,0.0951857,99049.0,99048.0,0.0001714]
[1735177691462,0.0931857,99049.0,99048.0,0.0001714]
[1735177691892,0.0951857,99049.0,99048.0,0.0001714]
[1735177695499,0.19925782,99049.0,99048.0,0.0001714]
[1735177695700,0.0952715,99049.0,99048.0,0.0001714]
[1735177696969,0.19925782,99049.0,99048.0,0.0001714]
[1735177698842,0.39209049,99049.0,99048.0,0.0001714]
[1735177699036,0.48085905,99049.0,99048.0,0.0001714]
[1735177699772,0.47885905,99049.0,99048.0,0.0001714]
[1735177700239,0.47785905,99049.0,99048.0,0.0001714]
[1735177700472,0.48085905,99049.0,99048.0,0.0001714]
[1735177701134,0.59871476,99049.0,99048.0,0.0001714]
[1735177701524,0.56731796,99049.0,99048.0,0.0001714]
[1735177703158,0.48085905,99049.0,99048.0,0.0001714]
[1735177706053,0.47885905,99049.0,99048.0,0.0001714]
[1735177706260,0.35035905,99049.0,99048.0,0.0001714]
[1735177706418,0.35535905,99049.0,99048.0,0.0001714]
[1735177706624,0.36335905,99049.0,99048.0,0.0011714]
[1735177706822,0.35035905,99049.0,99048.0,0.0001714]
[1735177707401,0.44068908,99049.0,99048.0,0.0011714]
[1735177707617,0.46711093,99049.0,99048.0,0.0001714]
[1735177707820,0.47311093,99049.0,99048.0,0.0011714]
[1735177708023,0.46811093,99049.0,99048.0,0.0001714]
[1735177709309,0.3967809,99049.0,99048.0,0.0011714]
[1735177709619,0.3867809,99049.0,99048.0,0.0001714]
[1735177709825,0.35535905,99049.0,99048.0,0.0001714]
[1735177710065,0.48564877,99049.0,99048.0,0.0011714]
[1735177710272,0.4542403,99049.0,99048.0,0.0001714]
[1735177710478,0.48563885,99049.0,99048.0,0.0001714]
[1735177710661,0.58962517,99049.0,99048.0,0.0001714]
[1735177711291,0.59862517,99049.0,99048.0,0.0011714]
[1735177711521,0.4632403,99049.0,99048.0,0.0011714]
[1735177711936,0.5239103,99049.0,99048.0,0.0011714]
[1735177712689,0.43402905,99049.0,99048.0,0.0011714]
[1735177713778,0.46544237,99049.0,99048.0,0.0011714]
[1735177714144,0.46544469,99049.0,99048.0,0.0011714]
[1735177714340,0.56943101,99049.0,99048.0,0.0011714]
[1735177714772,0.40477469,99049.0,99048.0,0.0011714]
[1735177714993,0.37335905,99049.0,99048.0,0.0011714]
[1735177715195,0.4632403,99049.0,99048.0,0.0011714]
[1735177716268,0.37335905,99049.0,99048.0,0.0011714]
[1735177719377,0.36725782,99049.0,99048.0,0.0011714]
[1735177719783,0.1132715,99049.0,99048.0,0.0011714]
[1735177721061,0.0952715,99049.0,99048.0,0.0001714]
[1735177721283,0.1002715,99049.0,99048.0,0.0001714]
[1735177721488,0.0952715,99049.0,99048.0,0.0001714]
[1735177721696,0.0050858,99049.0,99048.0,0.39239472]
[1735177721892,0.0080858,99049.0,99048.0,0.39239472]
[1735177722095,0.08988125,99065.0,99064.0,0.161511]
[1735177722306,0.08988125,99065.0,99064.0,0.39219732]
[1735177722666,0.18006695,99086.0,99081.0,0.161483]
[1735177723104,0.18006695,99086.0,99077.0,0.161489]
[1735177723305,0.18006695,99086.0,99081.0,0.161483]
[1735177723706,0.18006695,99086.0,99077.0,0.16149]
[1735177723909,0.0006043,99084.0,99081.0,0.001]
[1735177725450,0.0006043,99084.0,99081.0,0.002]
[1735177725974,0.0006043,99084.0,99074.0,0.16250322]
[1735177726174,0.0901857,99081.0,99070.0,0.00100922]
[1735177726375,0.0901857,99080.0,99068.0,0.00100926]
[1735177726590,0.0901857,99080.0,99069.0,0.161503]
[1735177726789,0.0901857,99078.0,99067.0,0.161506]
[1735177726987,0.0901857,99078.0,99068.0,0.00100929]
[1735177727509,0.0901857,99077.0,99068.0,0.00100929]
[1735177727643,0.0901857,99076.0,99065.0,0.16251932]
[1735177727839,0.0901857,99076.0,99066.0,0.00100932]
[1735177729205,0.0901857,99076.0,99067.0,0.161506]
[1735177729415,0.0901857,99076.0,99067.0,0.323012]
[1735177729592,0.0901857,99069.0,99064.0,0.0791]
[1735177729799,0.0901857,99069.0,99068.0,0.001]
[1735177730025,0.0901857,99069.0,99057.0,0.16253139]
[1735177731004,0.0901857,99064.0,99055.0,0.0813]
[1735177731351,0.0901857,99059.0,99050.0,0.161534]
[1735177732002,0.0901857,99055.0,99049.0,0.00118109]
[1735177732306,0.0901857,99055.0,99049.0,0.0001716]
[1735177732643,0.0901857,99055.0,99050.0,0.001]
[1735177733273,0.0901857,99054.0,99050.0,0.001]
[1735177733481,0.0901857,99051.0,99050.0,0.001]
[1735177733700,0.09119463,99051.0,99050.0,0.001]
[1735177734318,0.09119463,99051.0,99049.0,0.0021716]
[1735177734539,0.00100893,99050.0,99049.0,0.0021716]
[1735177734739,0.00100893,99050.0,99049.0,0.0001716]
[1735177735792,0.09119463,99050.0,99049.0,0.0001716]
[1735177735949,0.19518095,99050.0,99049.0,0.0001716]
[1735177736156,0.19918095,99050.0,99049.0,0.0001716]
[1735177736356,0.20118095,99050.0,99049.0,0.0001716]
[1735177737541,0.19518095,99050.0,99049.0,0.0001716]
[1735177737904,0.19718095,99050.0,99049.0,0.0001716]
[1735177738967,0.20118095,99050.0,99049.0,0.0001716]
[1735177739846,0.35118095,99050.0,99049.0,0.0001716]
[1735177740047,0.35017202,99050.0,99049.0,0.0001716]
[1735177743734,0.006,99050.0,99049.0,0.0001716]
[1735177744080,0.006,99050.0,99049.0,0.04918106]
[1735177744600,0.004,99050.0,99049.0,0.04918106]
[1735177744803,0.004,99050.0,99049.0,0.05018106]
[1735177745826,5.183e-05,99051.0,99050.0,0.161534]
[1735177746021,0.0901857,99050.0,99049.0,0.0011716]
[1735177746244,0.0901857,99050.0,99049.0,0.0041716]
[1735177746650,0.10585344,99060.0,99049.0,0.0041716]
[1735177746651,8.58e-05,99081.0,99049.0,0.0787716]
[1735177746846,0.00013769,99081.0,99068.0,0.1]
[1735177747076,0.00013769,99081.0,99079.0,0.161487]
[1735177747275,0.00013769,99081.0,99080.0,0.00100915]
[1735177747775,0.00913769,99081.0,99080.0,0.00100915]
[1735177748410,0.00613769,99081.0,99080.0,0.00100915]
[1735177748614,0.00613769,99081.0,99080.0,0.00200915]
[1735177749426,0.00013769,99081.0,99080.0,0.00200915]
[1735177749666,0.00013769,99081.0,99080.0,0.00400915]
[1735177749866,0.00013769,99081.0,99080.0,0.00100915]
[1735177750267,0.00013769,99081.0,99080.0,0.00600915]
[1735177750753,0.00013769,99081.0,99080.0,0.00500915]
[1735177750930,0.00013769,99081.0,99080.0,0.00700915]
[1735177751522,0.00013769,99081.0,99080.0,0.11099547]
[1735177752191,0.00013769,99081.0,99080.0,0.01325718]
[1735177754081,6.9e-07,99081.0,99080.0,0.4158435]
[1735177754283,6.9e-07,99081.0,99080.0,0.56483435]
[1735177755463,8.649e-05,99081.0,99080.0,0.56483435]
[1735177755665,8.649e-05,99081.0,99080.0,0.19183435]
[1735177755865,8.649e-05,99081.0,99080.0,0.01224803]